[Event "EYCC G10-ch 2024"]
[Site "Prague"]
[Date "2024.08.23"]
[Round "2.8"]
[White "Malcheva, Niya"]
[Black "Slusarczyk, Agnieszka"]
[Result "1-0"]
[ECO "C55"]
[WhiteElo "1551"]
[BlackElo "1614"]
[Annotator "NA"]
[PlyCount "163"]
[EventDate "2024.08.19"]
[EventType "swiss"]
[EventCountry "CZE"]
[SourceTitle "playchess.com"]
[Source "ChessBase"]
[SourceQuality "1"]
[TimeControl "5400+30"]

1. e4 {[%emt 0:00:03]} e5 {[%emt 0:00:08]} 2. Nf3 {[%emt 0:00:06]} Nc6 {[%emt 0:00:12]} 3. Bc4 {[%emt 0:00:08]} Nf6 {[%emt 0:00:14]} 4. d3 {[%emt 0:00:07]} Be7 {[%emt 0:00:20]} 5. c3 {[%emt 0:00:24]} O-O {[%emt 0:00:14]} 6. O-O {[%emt 0:00:17]} d5 {[%emt 0:00:11]} 7. exd5 {[%emt 0:00:29]} Nxd5 {[%emt 0:00:21]} 8. Re1 {[%emt 0:00:11]} Bg4 {[%emt 0:01:04]} 9. h3 {[%emt 0:01:30]} Bh5 {[%emt 0:00:23]} 10. g4 {[%emt 0:16:12]} Bg6 {[%emt 0:00:32]} 11. Nxe5 {[%emt 0:01:51]} Nxe5 {[%emt 0:01:55]} 12. Rxe5 {[%emt 0:00:05]} Nb6 {[%emt 0:00:23]} 13. Bb3 {[%emt 0:03:27]} Bxd3 {[%emt 0:05:25]} 14. Rxe7 Qxe7 {[%emt 0:00:39]} 15. Qxd3 {[%emt 0:00:19]} Qe1+ {[%emt 0:01:41]} 16. Qf1 {[%emt 0:00:05]} Qe5 {[%emt 0:04:43]} 17. Be3 {[%emt 0:03:28]} Nd5 {[%emt 0:01:02]} 18. Bd4 {[%emt 0:00:38]} Qd6 {[%emt 0:01:12]} 19. Nd2 {[%emt 0:02:15]} Nf4 {[%emt 0:01:07]} 20. Nc4 {[%emt 0:06:06]} Qh6 {[%emt 0:06:25]} 21. Kh2 {[%emt 0:01:22]} Qg5 {[%emt 0:03:34]} 22. Re1 {[%emt 0:07:01]} Rae8 {[%emt 0:13:21]} 23. Ne5 {[%emt 0:03:21]} Ne6 {[%emt 0:05:01]} 24. Bxe6 {[%emt 0:04:00]} Qf4+ {[%emt 0:01:45]} 25. Kg1 {[%emt 0:01:22]} Rxe6 {[%emt 0:01:32]} 26. Qd3 {[%emt 0:08:18]} h5 {[%emt 0:03:26]} 27. Qe3 {[%emt 0:03:35]} Qxe3 {[%emt 0:00:46]} 28. Rxe3 {[%emt 0:00:08]} hxg4 {[%emt 0:00:27]} 29. hxg4 {[%emt 0:00:08]} Rd8 {[%emt 0:01:32]} 30. Kg2 {[%emt 0:04:42]} b6 {[%emt 0:00:56]} 31. b4 {[%emt 0:00:15]} a5 {[%emt 0:00:29]} 32. b5 {[%emt 0:00:13]} Rd5 {[%emt 0:01:48]} 33. a4 {[%emt 0:00:30]} Kf8 {[%emt 0:03:11]} 34. f4 {[%emt 0:03:52]} Ke8 {[%emt 0:02:14]} 35. Kf3 {[%emt 0:01:22]} f6 {[%emt 0:01:06]} 36. Ng6 {[%emt 0:01:26]} Kf7 {[%emt 0:01:03]} 37. f5 {[%emt 0:00:22]} Rxe3+ {[%emt 0:00:50]} 38. Kxe3 {[%emt 0:00:11]} Ke8 {[%emt 0:00:22]} 39. Nf4 {[%emt 0:00:19]} Rd7 {[%emt 0:00:18]} 40. Ne6 {[%emt 0:00:19]} Kf7 {[%emt 0:00:40]} 41. Kd3 {[%emt 0:01:46]} g6 {[%emt 0:00:28]} 42. Kc2 {[%emt 0:01:43]} gxf5 {[%emt 0:01:02]} 43. gxf5 {[%emt 0:00:11]} Ke7 {[%emt 0:03:14]} 44. Kd3 {[%emt 0:01:36]} Kd6 {[%emt 0:01:07]} 45. Ke4 {[%emt 0:02:30]} Ke7 {[%emt 0:01:07]} 46. Kf4 {[%emt 0:00:50]} Kf7 {[%emt 0:00:29]} 47. Kg4 {[%emt 0:00:27]} Re7 {[%emt 0:00:46]} 48. Kf3 {[%emt 0:01:52]} Rd7 {[%emt 0:00:11]} 49. Kf4 {[%emt 0:00:05]} Re7 {[%emt 0:00:13]} 50. Nd8+ {[%emt 0:00:12]} Kg7 {[%emt 0:01:06]} 51. Ne6+ {[%emt 0:00:55]} Kf7 {[%emt 0:00:13]} 52. Ke4 {[%emt 0:00:55]} Rd7 {[%emt 0:00:17]} 53. c4 {[%emt 0:00:05]} Ke7 {[%emt 0:01:01]} 54. c5 {[%emt 0:00:24]} bxc5 {[%emt 0:02:19]} 55. Nxc5 {[%emt 0:00:46]} Rd8 {[%emt 0:00:19]} 56. Nb7 {[%emt 0:00:09]} Ra8 {[%emt 0:00:22]} 57. Kd5 {[%emt 0:01:07]} Kd7 {[%emt 0:01:10]} 58. Nc5+ {[%emt 0:01:23]} Ke7 {[%emt 0:00:23]} 59. Kc6 {[%emt 0:00:13]} Rc8 {[%emt 0:00:38]} 60. Kb7 {[%emt 0:00:15]} Rd8 {[%emt 0:00:21]} 61. Ne6 {[%emt 0:00:20]} Rd7 {[%emt 0:00:15]} 62. Kc6 {[%emt 0:01:18]} Rd6+ {[%emt 0:01:07]} 63. Kxc7 {[%emt 0:00:17]} Rd5 {[%emt 0:00:07]} 64. b6 {[%emt 0:01:37]} Rd7+ {[%emt 0:00:28]} 65. Kc6 {[%emt 0:00:45]} Rd6+ {[%emt 0:00:03]} 66. Kb5 {[%emt 0:00:15]} Rd5+ {[%emt 0:00:04]} 67. Ka6 {[%emt 0:00:08]} Kd7 {[%emt 0:00:11]} 68. b7 {[%emt 0:00:11]} Rd6+ 69. Ka7 {[%emt 0:00:07]} Rxd4 {[%emt 0:00:41]} 70. Nxd4 {[%emt 0:00:13]} Kd6 {[%emt 0:00:28]} 71. b8=Q+ {[%emt 0:00:08]} Kd5 {[%emt 0:00:07]} 72. Qc7 {[%emt 0:00:33]} Ke4 {[%emt 0:00:04]} 73. Nb3 {[%emt 0:00:17]} Kd3 {[%emt 0:00:06]} 74. Qc5 {[%emt 0:00:35]} Ke2 {[%emt 0:00:09]} 75. Qd4 {[%emt 0:00:10]} Kf1 {[%emt 0:00:04]} 76. Qd2 {[%emt 0:00:11]} Kg1 {[%emt 0:00:08]} 77. Kb6 {[%emt 0:00:05]} Kh1 {[%emt 0:00:10]} 78. Kc5 {[%emt 0:00:04]} Kg1 {[%emt 0:00:12]} 79. Kd4 {[%emt 0:00:05]} Kf1 {[%emt 0:00:06]} 80. Ke3 {[%emt 0:00:13]} Kg1 {[%emt 0:00:09]} 81. Kf3 {[%emt 0:00:04]} Kh1 {[%emt 0:00:09]} 82. Qg2# {[%emt 0:00:06]} 1-0

[Event "EYCC G10-ch 2024"]
[Site "Prague"]
[Date "2024.08.23"]
[Round "2.9"]
[White "Bhaumik, Mehr"]
[Black "Kocherha, Yelizavieta"]
[Result "1-0"]
[ECO "D00"]
[WhiteElo "1606"]
[BlackElo "1519"]
[Annotator "NA RC"]
[PlyCount "79"]
[EventDate "2024.08.19"]
[EventType "swiss"]
[EventCountry "CZE"]
[SourceTitle "playchess.com"]
[Source "ChessBase"]
[SourceQuality "1"]
[TimeControl "5400+30"]

1. d4 {[%emt 0:00:05]} d5 {[%emt 0:00:25]} 2. Nc3 {[%emt 0:00:16]} Nf6 {[%emt 0:00:22]} 3. Bf4 {[%emt 0:00:18]} c5 {[%emt 0:00:28]} 4. e3 {[%emt 0:00:28]} cxd4 {[%emt 0:00:55]} 5. exd4 {[%emt 0:00:21]} a6 {[%emt 0:00:26]} 6. Nf3 {[%emt 0:00:30]} Nc6 {[%emt 0:01:23]} 7. Ne5 {[%emt 0:01:57]} Qb6 {[%emt 0:03:36]} 8. Nxc6 {[%emt 0:02:49]} Qxb2 {[%emt 0:01:11]} 9. Na4 {[%emt 0:00:57]} Qa3 {[%emt 0:01:44]} 10. Nb6 {[%emt 0:11:39]} Ne4 {[%emt 0:04:18]} 11. Bd2 {[%emt 0:12:33]} bxc6 {[%emt 0:01:53]} 12. Nxa8 {[%emt 0:01:24]} Nc3 {[%emt 0:04:32]} 13. Qf3 {[%emt 0:04:03]} Nb5 {[%emt 0:01:44]} 14. Bxb5 {[%emt 0:00:24]} Qxf3 {[%emt 0:00:28]} 15. Bxc6+ {[%emt 0:00:16]} Kd8 {[%emt 0:00:48]} 16. gxf3 {[%emt 0:00:17]} e6 {[%emt 0:01:08]} 17. Ba5+ {[%emt 0:00:09]} Ke7 {[%emt 0:00:36]} 18. Nb6 {[%emt 0:00:23]} Kd6 {[%emt 0:00:52]} 19. Ba4 {[%emt 0:01:27]} Bb7 {[%emt 0:00:19]} 20. Bb3 {[%emt 0:00:16]} g6 {[%emt 0:02:29]} 21. Bb4+ {[%emt 0:01:01]} Kc7 {[%emt 0:01:41]} 22. Bxf8 {[%emt 0:00:12]} Rxf8 {[%emt 0:00:26]} 23. Na4 {[%emt 0:00:13]} Kd6 {[%emt 0:00:48]} 24. Nc5 {[%emt 0:00:16]} Bc8 {[%emt 0:01:00]} 25. c4 {[%emt 0:00:08]} e5 {[%emt 0:01:12]} 26. cxd5 {[%emt 0:01:06]} exd4 {[%emt 0:00:45]} 27. Ne4+ {[%emt 0:02:07]} Ke5 {[%emt 0:00:41]} 28. d6 {[%emt 0:01:08]} f5 {[%emt 0:00:25]} 29. Nd2 {[%emt 0:03:07]} Kxd6 {[%emt 0:00:38]} 30. Nc4+ {[%emt 0:00:20]} Kc5 {[%emt 0:00:43]} 31. O-O-O {[%emt 0:00:54]} Bb7 {[%emt 0:02:43]} 32. Rd3 {[%emt 0:00:20]} Rd8 {[%emt 0:02:58]} 33. Rhd1 {[%emt 0:00:34]} Bc6 {[%emt 0:02:31]} 34. f4 {[%emt 0:02:01]} Be4 {[%emt 0:00:35]} 35. R3d2 {[%emt 0:01:20]} Bc6 {[%emt 0:02:53]} 36. Re1 {[%emt 0:04:12]} Be4 {[%emt 0:00:26]} 37. Kb2 {[%emt 0:00:53]} Rd7 {[%emt 0:01:43]} 38. Rc1 {[%emt 0:00:32]} Kb5 {[%emt 0:02:06]} 39. Ba4+ {[%emt 0:00:35]} Kxa4 {[%emt 0:01:52]} 40. Nb6+ 1-0

[Event "EYCC G10-ch 2024"]
[Site "Prague"]
[Date "2024.08.23"]
[Round "2.10"]
[White "Saltkhutsishvili, Sara"]
[Black "Horodna, Anna"]
[Result "0-1"]
[ECO "B32"]
[WhiteElo "1535"]
[BlackElo "1603"]
[Annotator "NA RC"]
[PlyCount "70"]
[EventDate "2024.08.19"]
[EventType "swiss"]
[EventCountry "CZE"]
[SourceTitle "playchess.com"]
[Source "ChessBase"]
[SourceQuality "1"]
[TimeControl "5400+30"]

1. e4 {[%emt 0:00:06]} c5 2. Nf3 {[%emt 0:00:35]} Nc6 {[%emt 0:01:33]} 3. d4 {[%emt 0:01:09]} cxd4 {[%emt 0:00:56]} 4. Nxd4 {[%emt 0:00:36]} e5 {[%emt 0:01:23]} 5. Nb5 {[%emt 0:01:44]} d6 {[%emt 0:01:01]} 6. N1c3 {[%emt 0:02:03]} a6 {[%emt 0:00:26]} 7. Na3 {[%emt 0:01:10]} b5 {[%emt 0:01:18]} 8. Nd5 {[%emt 0:01:41]} Nge7 {[%emt 0:04:42]} 9. Bg5 {[%emt 0:05:09]} f6 {[%emt 0:13:50]} 10. Qh5+ {[%emt 0:03:08]} g6 {[%emt 0:00:18]} 11. Nxf6+ {[%emt 0:00:31]} Kf7 {[%emt 0:00:03]} 12. Qh4 {[%emt 0:01:10]} h6 {[%emt 0:01:12]} 13. Nd5 {[%emt 0:04:33]} hxg5 {[%emt 0:00:35]} 14. Qxh8 {[%emt 0:00:42]} Qa5+ {[%emt 0:00:01]} 15. c3 {[%emt 0:01:42]} Bg7 {[%emt 0:00:09]} 16. Qh7 {[%emt 0:01:48]} Be6 {[%emt 0:00:24]} 17. Nxe7 {[%emt 0:01:15]} Nxe7 {[%emt 0:00:09]} 18. h4 {[%emt 0:01:19]} Rh8 {[%emt 0:00:26]} 19. Qxh8 {[%emt 0:01:11]} Bxh8 {[%emt 0:00:16]} 20. hxg5 {[%emt 0:00:11]} Bg7 {[%emt 0:00:23]} 21. Nc2 {[%emt 0:01:16]} d5 {[%emt 0:00:37]} 22. f3 {[%emt 0:01:22]} d4 {[%emt 0:00:36]} 23. Kd2 {[%emt 0:02:24]} Nc6 {[%emt 0:01:05]} 24. a3 {[%emt 0:02:22]} Bb3 {[%emt 0:00:54]} 25. Nb4 {[%emt 0:01:34]} dxc3+ {[%emt 0:00:06]} 26. bxc3 {[%emt 0:00:32]} Nxb4 {[%emt 0:00:47]} 27. axb4 {[%emt 0:00:52]} Qd8+ {[%emt 0:00:11]} 28. Ke2 {[%emt 0:02:08]} Qxg5 {[%emt 0:00:38]} 29. Rxa6 {[%emt 0:01:33]} Bh6 {[%emt 0:01:42]} 30. Kf2 {[%emt 0:01:48]} Qe3+ {[%emt 0:01:11]} 31. Kg3 {[%emt 0:00:22]} Bf4+ {[%emt 0:00:13]} 32. Kg4 {[%emt 0:04:10]} Be6+ {[%emt 0:00:26]} 33. Rxe6 {[%emt 0:00:13]} Kxe6 {[%emt 0:00:06]} 34. Bxb5 {[%emt 0:00:36]} Qf2 {[%emt 0:00:07]} 35. Bc4+ {[%emt 0:00:41]} Kf6 {[%emt 0:00:01]} 0-1

[Event "EYCC G10-ch 2024"]
[Site "Prague"]
[Date "2024.08.23"]
[Round "2.11"]
[White "Paunescu, Aida"]
[Black "Tarielashvili, Kira"]
[Result "1-0"]
[ECO "A46"]
[WhiteElo "1603"]
[BlackElo "1431"]
[Annotator "NA RC"]
[PlyCount "67"]
[EventDate "2024.08.19"]
[EventType "swiss"]
[EventCountry "CZE"]
[SourceTitle "playchess.com"]
[Source "ChessBase"]
[SourceQuality "1"]
[TimeControl "5400+30"]

1. d4 {[%emt 0:00:04]} Nf6 {[%emt 0:00:41]} 2. Nf3 {[%emt 0:00:32]} e6 {[%emt 0:01:20]} 3. Bf4 {[%emt 0:01:53]} b6 {[%emt 0:02:57]} 4. e3 {[%emt 0:01:16]} Bb7 {[%emt 0:05:48]} 5. c3 {[%emt 0:02:21]} Bc6 {[%emt 0:03:14]} 6. Bd3 {[%emt 0:04:57]} d6 {[%emt 0:03:30]} 7. O-O {[%emt 0:02:19]} Be7 {[%emt 0:02:54]} 8. Nbd2 {[%emt 0:01:53]} Bb7 {[%emt 0:07:47]} 9. Re1 {[%emt 0:03:48]} c5 {[%emt 0:03:39]} 10. e4 {[%emt 0:05:31]} Nc6 {[%emt 0:04:33]} 11. Qe2 {[%emt 0:11:42]} d5 {[%emt 0:04:23]} 12. e5 {[%emt 0:05:06]} Nd7 {[%emt 0:01:20]} 13. Qe3 {[%emt 0:02:21]} c4 {[%emt 0:02:58]} 14. Bc2 {[%emt 0:00:19]} b5 {[%emt 0:01:55]} 15. a3 {[%emt 0:00:28]} a6 {[%emt 0:02:21]} 16. Bg5 {[%emt 0:02:23]} Bxg5 {[%emt 0:03:17]} 17. Nxg5 {[%emt 0:03:56]} h6 {[%emt 0:02:58]} 18. Ngf3 {[%emt 0:04:10]} O-O {[%emt 0:03:42]} 19. Nf1 {[%emt 0:00:43]} Ne7 {[%emt 0:04:52]} 20. Ng3 {[%emt 0:01:12]} Ng6 {[%emt 0:00:34]} 21. h3 {[%emt 0:01:52]} Qe7 {[%emt 0:04:10]} 22. Qd2 {[%emt 0:02:31]} a5 {[%emt 0:01:08]} 23. Nh2 {[%emt 0:04:47]} Kh7 {[%emt 0:02:05]} 24. Qe3 {[%emt 0:03:03]} a4 {[%emt 0:02:37]} 25. Ng4 {[%emt 0:01:24]} Bc6 {[%emt 0:06:21]} 26. Nh5 {[%emt 0:04:26]} f5 {[%emt 0:04:54]} 27. exf6 {[%emt 0:01:02]} gxf6 {[%emt 0:01:40]} 28. Qxh6+ {[%emt 0:00:34]} Kg8 {[%emt 0:00:38]} 29. Qxg6+ {[%emt 0:00:26]} Kh8 {[%emt 0:00:12]} 30. Qh6+ {[%emt 0:01:31]} Kg8 {[%emt 0:00:16]} 31. Rxe6 {[%emt 0:00:38]} Qf7 {[%emt 0:00:26]} 32. Rxf6 {[%emt 0:01:59]} Nxf6 {[%emt 0:00:22]} 33. Ngxf6+ {[%emt 0:00:18]} Qxf6 {[%emt 0:00:18]} 34. Qh7# {[%emt 0:00:09]} 1-0

[Event "EYCC G10-ch 2024"]
[Site "Prague"]
[Date "2024.08.23"]
[Round "2.12"]
[White "Kiryttopoulou, Eleonora Kaisa"]
[Black "Kravchuk, Daria"]
[Result "0-1"]
[ECO "B31"]
[WhiteElo "1525"]
[BlackElo "1597"]
[Annotator "NA"]
[PlyCount "62"]
[EventDate "2024.08.19"]
[EventType "swiss"]
[EventCountry "CZE"]
[SourceTitle "playchess.com"]
[Source "ChessBase"]
[SourceQuality "1"]
[TimeControl "5400+30"]

1. e4 {[%emt 0:00:03]} c5 {[%emt 0:00:28]} 2. Nf3 {[%emt 0:00:19]} Nc6 {[%emt 0:00:11]} 3. Bb5 {[%emt 0:00:14]} g6 {[%emt 0:00:57]} 4. Bxc6 {[%emt 0:00:23]} bxc6 {[%emt 0:00:12]} 5. O-O {[%emt 0:00:11]} d6 {[%emt 0:03:34]} 6. h3 {[%emt 0:00:44]} Bg7 {[%emt 0:01:41]} 7. Re1 {[%emt 0:02:27]} e5 {[%emt 0:02:44]} 8. c3 {[%emt 0:01:38]} Qa5 {[%emt 0:17:13]} 9. Na3 {[%emt 0:21:06]} Ba6 {[%emt 0:07:29]} 10. Nc2 {[%emt 0:09:57]} Bd3 {[%emt 0:03:16]} 11. Re3 {[%emt 0:01:23]} Bxc2 {[%emt 0:03:32]} 12. Qxc2 {[%emt 0:00:08]} Ne7 {[%emt 0:00:43]} 13. Qd1 {[%emt 0:03:29]} Qb6 {[%emt 0:05:23]} 14. a3 {[%emt 0:05:48]} a5 {[%emt 0:01:47]} 15. Rb1 {[%emt 0:03:46]} O-O {[%emt 0:07:05]} 16. b4 {[%emt 0:01:52]} axb4 {[%emt 0:04:07]} 17. cxb4 {[%emt 0:02:39]} d5 {[%emt 0:10:00]} 18. Qc2 {[%emt 0:07:13]} c4 {[%emt 0:03:14]} 19. exd5 {[%emt 0:02:12]} cxd5 {[%emt 0:06:03]} 20. Nxe5 {[%emt 0:01:18]} Qc7 {[%emt 0:02:09]} 21. Nf3 {[%emt 0:02:03]} Nf5 {[%emt 0:02:20]} 22. Re1 {[%emt 0:02:39]} Rfe8 {[%emt 0:02:08]} 23. Rxe8+ {[%emt 0:01:37]} Rxe8 {[%emt 0:00:30]} 24. Bb2 {[%emt 0:01:37]} d4 {[%emt 0:01:23]} 25. Re1 {[%emt 0:01:47]} Rxe1+ {[%emt 0:02:25]} 26. Nxe1 {[%emt 0:00:06]} c3 {[%emt 0:01:45]} 27. Ba1 {[%emt 0:04:35]} d3 {[%emt 0:03:40]} 28. Nxd3 {[%emt 0:05:43]} cxd2 {[%emt 0:02:46]} 29. Qd1 {[%emt 0:01:25]} Bxa1 {[%emt 0:01:08]} 30. Qxa1 {[%emt 0:00:08]} Qc2 {[%emt 0:00:13]} 31. Qf1 {[%emt 0:05:51]} d1=Q {[%emt 0:01:12]} 0-1

[Event "EYCC G10-ch 2024"]
[Site "Prague"]
[Date "2024.08.23"]
[Round "2.13"]
[White "Russieva, Svitlana"]
[Black "Gorecka, Laura"]
[Result "1-0"]
[ECO "B23"]
[WhiteElo "1597"]
[BlackElo "1428"]
[Annotator "NA RC"]
[PlyCount "53"]
[EventDate "2024.08.19"]
[EventType "swiss"]
[EventCountry "CZE"]
[SourceTitle "playchess.com"]
[Source "ChessBase"]
[SourceQuality "1"]
[TimeControl "5400+30"]

1. e4 {[%emt 0:00:01]} c5 {[%emt 0:00:09]} 2. Nc3 {[%emt 0:00:06]} a6 {[%emt 0:00:22]} 3. g3 {[%emt 0:00:19]} b5 {[%emt 0:00:26]} 4. Bg2 {[%emt 0:00:38]} Bb7 {[%emt 0:00:09]} 5. Nge2 {[%emt 0:01:03]} Nf6 {[%emt 0:00:23]} 6. O-O {[%emt 0:01:25]} b4 {[%emt 0:00:32]} 7. Nd5 {[%emt 0:02:37]} Nxd5 {[%emt 0:03:51]} 8. exd5 {[%emt 0:00:16]} Qb6 {[%emt 0:01:49]} 9. c4 {[%emt 0:03:42]} g6 {[%emt 0:01:08]} 10. Re1 {[%emt 0:02:54]} Bg7 {[%emt 0:02:37]} 11. Nf4 {[%emt 0:00:21]} Bf6 {[%emt 0:03:42]} 12. d3 {[%emt 0:05:06]} O-O {[%emt 0:00:12]} 13. d6 {[%emt 0:05:53]} Bxg2 {[%emt 0:02:41]} 14. dxe7 {[%emt 0:00:25]} Re8 {[%emt 0:01:19]} 15. Kxg2 {[%emt 0:01:07]} Bxe7 {[%emt 0:01:44]} 16. Nd5 {[%emt 0:02:10]} Qd8 {[%emt 0:03:39]} 17. Rxe7 {[%emt 0:01:53]} Rxe7 {[%emt 0:01:34]} 18. Bg5 {[%emt 0:00:14]} Nc6 {[%emt 0:00:33]} 19. Nxe7+ {[%emt 0:01:17]} Nxe7 {[%emt 0:01:35]} 20. Qe2 {[%emt 0:00:29]} Qb6 {[%emt 0:07:25]} 21. Bxe7 {[%emt 0:00:45]} Re8 {[%emt 0:01:24]} 22. Re1 {[%emt 0:00:17]} Qa5 {[%emt 0:01:15]} 23. Qe5 {[%emt 0:01:09]} Qxa2 {[%emt 0:05:15]} 24. Qf6 {[%emt 0:00:05]} Qa4 {[%emt 0:02:06]} 25. Qh8+ {[%emt 0:00:09]} Kxh8 {[%emt 0:00:21]} 26. Bf6+ {[%emt 0:00:05]} Kg8 {[%emt 0:00:11]} 27. Rxe8# {[%emt 0:00:05]} 1-0

[Event "EYCC G10-ch 2024"]
[Site "Prague"]
[Date "2024.08.23"]
[Round "2.14"]
[White "Vadkerti, Anna"]
[Black "Perea Fruet, Alba"]
[Result "1-0"]
[ECO "B23"]
[WhiteElo "1517"]
[BlackElo "1590"]
[Annotator "NA RC"]
[PlyCount "63"]
[EventDate "2024.08.19"]
[EventType "swiss"]
[EventCountry "CZE"]
[SourceTitle "playchess.com"]
[Source "ChessBase"]
[SourceQuality "1"]
[TimeControl "5400+30"]

1. e4 {[%emt 0:00:03]} c5 {[%emt 0:00:13]} 2. Nc3 {[%emt 0:00:11]} e6 {[%emt 0:00:17]} 3. g3 {[%emt 0:00:08]} a6 {[%emt 0:00:10]} 4. a4 {[%emt 0:00:08]} Nc6 {[%emt 0:00:27]} 5. Bg2 {[%emt 0:00:15]} Nf6 {[%emt 0:00:58]} 6. d3 {[%emt 0:00:21]} Be7 {[%emt 0:00:42]} 7. Nge2 {[%emt 0:00:28]} d5 {[%emt 0:00:36]} 8. exd5 {[%emt 0:00:54]} exd5 {[%emt 0:00:08]} 9. Bg5 {[%emt 0:00:56]} Nb4 {[%emt 0:01:57]} 10. O-O {[%emt 0:02:19]} O-O {[%emt 0:01:21]} 11. Bxf6 {[%emt 0:01:12]} Bxf6 {[%emt 0:00:18]} 12. Nf4 {[%emt 0:01:08]} d4 {[%emt 0:02:45]} 13. Ncd5 {[%emt 0:00:31]} Nxd5 {[%emt 0:01:22]} 14. Nxd5 {[%emt 0:00:24]} Be5 {[%emt 0:01:07]} 15. Re1 {[%emt 0:05:30]} Bd6 {[%emt 0:02:05]} 16. a5 {[%emt 0:05:15]} Bc7 {[%emt 0:02:38]} 17. Qd2 {[%emt 0:06:02]} Rb8 {[%emt 0:02:10]} 18. Nxc7 {[%emt 0:04:51]} Qxc7 {[%emt 0:00:11]} 19. Re2 {[%emt 0:01:10]} Be6 {[%emt 0:05:52]} 20. Be4 {[%emt 0:06:42]} h6 {[%emt 0:03:19]} 21. f4 {[%emt 0:03:14]} Qd7 {[%emt 0:03:42]} 22. Rf1 {[%emt 0:05:52]} Bf5 {[%emt 0:04:53]} 23. Bxf5 {[%emt 0:00:49]} Qxf5 {[%emt 0:01:18]} 24. Re5 {[%emt 0:01:46]} Qc8 {[%emt 0:02:37]} 25. f5 {[%emt 0:01:53]} Re8 {[%emt 0:02:33]} 26. Qf4 {[%emt 0:02:24]} Qc6 {[%emt 0:03:57]} 27. Rfe1 {[%emt 0:05:32]} Qb5 {[%emt 0:02:10]} 28. f6 {[%emt 0:02:15]} g5 {[%emt 0:05:59]} 29. Rxg5+ {[%emt 0:02:09]} Kh8 {[%emt 0:01:43]} 30. Rg8+ {[%emt 0:01:19]} Kxg8 {[%emt 0:01:17]} 31. Qg4+ {[%emt 0:00:08]} Kf8 {[%emt 0:00:11]} 32. Qg7# {[%emt 0:00:12]} 1-0

[Event "EYCC G10-ch 2024"]
[Site "Prague"]
[Date "2024.08.24"]
[Round "3.1"]
[White "Chen, Yuefan"]
[Black "Russieva, Svitlana"]
[Result "1-0"]
[ECO "D45"]
[WhiteElo "1682"]
[BlackElo "1597"]
[Annotator "NA RC"]
[PlyCount "41"]
[EventDate "2024.08.19"]
[EventType "swiss"]
[EventCountry "CZE"]
[SourceTitle "playchess.com"]
[Source "ChessBase"]
[SourceQuality "1"]
[TimeControl "5400+30"]

1. d4 {[%emt 0:00:03]} d5 {[%emt 0:00:04]} 2. c4 {[%emt 0:00:04]} e6 {[%emt 0:00:09]} 3. Nf3 {[%emt 0:00:40]} c6 {[%emt 0:01:04]} 4. e3 {[%emt 0:00:29]} Nf6 {[%emt 0:01:30]} 5. Nc3 {[%emt 0:01:10]} Be7 {[%emt 0:01:36]} 6. Bd3 {[%emt 0:02:00]} O-O {[%emt 0:01:04]} 7. O-O {[%emt 0:01:02]} Nbd7 {[%emt 0:00:32]} 8. e4 {[%emt 0:04:44]} dxc4 {[%emt 0:05:02]} 9. Bxc4 {[%emt 0:00:39]} Bb4 {[%emt 0:01:34]} 10. Qc2 {[%emt 0:02:40]} b5 {[%emt 0:01:45]} 11. Bd3 {[%emt 0:02:24]} Bb7 {[%emt 0:00:29]} 12. e5 {[%emt 0:04:59]} Nd5 {[%emt 0:02:01]} 13. Nxd5 {[%emt 0:01:09]} exd5 {[%emt 0:00:10]} 14. Bxh7+ {[%emt 0:01:39]} Kh8 {[%emt 0:01:44]} 15. Bd3 {[%emt 0:01:06]} Rc8 {[%emt 0:02:04]} 16. a3 {[%emt 0:06:51]} Be7 {[%emt 0:02:26]} 17. b4 {[%emt 0:02:09]} a5 {[%emt 0:01:19]} 18. Rb1 {[%emt 0:02:10]} Nb6 {[%emt 0:07:23]} 19. Qe2 {[%emt 0:03:47]} f6 {[%emt 0:17:36]} 20. Nh4 {[%emt 0:05:01]} Kg8 {[%emt 0:02:44]} 21. Qh5 1-0